bitfinex-derivatives/quotes_BTCF0:USTF0_20250912
["timestamp","ask_amount","ask_price","bid_price","bid_amount"]
[1757672526042,0.0338,115040.0,115030.0,0.07783512]
[1757672526747,0.0338,115040.0,115030.0,0.09978512]
[1757672526948,0.0338,115040.0,115030.0,0.002]
[1757672527148,0.0338,115040.0,115030.0,0.006]
[1757672528053,0.0338,115040.0,115030.0,0.002]
[1757672528252,0.0348,115040.0,115030.0,0.007]
[1757672528753,0.0348,115040.0,115030.0,0.003]
[1757672528956,0.0348,115040.0,115030.0,0.001]
[1757672529152,0.0348,115040.0,115030.0,0.004]
[1757672529752,0.0348,115040.0,115030.0,0.001]
[1757672529960,0.0358,115040.0,115030.0,0.001]
[1757672530152,0.3056,115040.0,115030.0,0.001]
[1757672533057,0.3056,115040.0,115030.0,0.02295]
[1757672533457,0.3056,115040.0,115030.0,0.001]
[1757672533664,0.3056,115040.0,115030.0,0.02295]
[1757672538163,0.3056,115040.0,115030.0,0.001]
[1757672538164,0.0358,115040.0,115030.0,0.001]
[1757672538368,0.2858,115040.0,115030.0,0.001]
[1757672540367,0.35650895,115040.0,115030.0,0.001]
[1757672547672,0.03641,115020.0,115010.0,0.3608]
[1757672549078,0.05667392,115020.0,115010.0,0.3618]
[1757672550176,0.05767392,115020.0,115010.0,0.3638]
[1757672552491,0.05781778,115020.0,115010.0,0.3638]
[1757672554286,0.08021761,115020.0,115010.0,0.3638]
[1757672554986,0.05781778,115020.0,115010.0,0.3638]
[1757672555179,0.08021761,115020.0,115010.0,0.3638]
[1757672559183,0.08281761,115020.0,115010.0,0.3638]
[1757672564790,0.08281761,115020.0,115010.0,0.38643]
[1757672565190,0.06240983,115020.0,115010.0,0.63643]
[1757672565385,0.02656,115020.0,115010.0,0.64967]
[1757672578300,0.03938,115020.0,115010.0,0.64967]
[1757672580100,0.02656,115020.0,115010.0,0.64967]
[1757672581800,0.03938,115020.0,115010.0,0.64967]
[1757672582599,0.03938,115020.0,115010.0,0.63643]
[1757672583505,0.03938,115020.0,115010.0,0.64914]
[1757672584303,0.02656,115020.0,115010.0,0.64914]
[1757672586208,0.0036,115020.0,115010.0,0.66686849]
[1757672586408,0.0036,115020.0,115010.0,0.83163111]
[1757672588007,0.0036,115020.0,115010.0,1.26379599]
[1757672588207,0.0036,115020.0,115010.0,0.75379599]
[1757672588608,0.0036,115020.0,115010.0,0.86276375]
[1757672595419,0.0252,115020.0,115010.0,0.86276375]
[1757672595620,0.0036,115020.0,115010.0,0.86276375]
[1757672598321,0.0252,115020.0,115010.0,0.61276375]
[1757672599321,0.0036,115020.0,115010.0,0.61276375]
[1757672600021,0.0036,115020.0,115010.0,0.52583625]
[1757672600621,0.0036,115020.0,115010.0,0.61276375]
[1757672604720,0.02566,115020.0,115010.0,0.52583625]
[1757672615437,0.02566,115020.0,115010.0,0.52483625]
[1757672615629,0.02566,115020.0,115010.0,0.52283625]
[1757672615630,0.02466,115020.0,115010.0,0.52283625]
[1757672615830,0.02566,115020.0,115010.0,0.61076375]
[1757672616234,0.02566,115020.0,115010.0,0.52383625]
[1757672616835,0.02566,115020.0,115010.0,0.61076375]
[1757672618034,0.02566,115020.0,115010.0,0.52383625]
[1757672620741,0.02566,115020.0,115010.0,0.61076375]
[1757672621244,0.0036,115020.0,115010.0,0.61076375]
[1757672628750,0.29021487,115040.0,115010.0,0.69769125]
[1757672628939,0.31227487,115040.0,115030.0,0.11480662]
[1757672630044,0.31427487,115040.0,115030.0,0.11480662]
[1757672630839,0.31727487,115040.0,115030.0,0.11480662]
[1757672631252,0.31427487,115040.0,115030.0,0.11480662]
[1757672631447,0.31727487,115040.0,115030.0,0.11580662]
[1757672631840,0.31727487,115040.0,115030.0,0.11480662]
[1757672632046,0.31527487,115040.0,115030.0,0.11580662]
[1757672632442,0.31427487,115040.0,115030.0,0.11580662]
[1757672634353,0.32726487,115040.0,115030.0,0.11580662]
[1757672636652,0.32726487,115040.0,115030.0,0.10235662]
[1757672637653,0.32726487,115040.0,115030.0,0.02422]
[1757672640458,0.31427487,115040.0,115030.0,0.03814]
[1757672640953,0.29221487,115040.0,115030.0,0.03814]
[1757672641154,0.29221487,115040.0,115030.0,0.11627662]
[1757672641657,0.31390487,115040.0,115030.0,0.11627662]
[1757672644860,0.32689487,115040.0,115030.0,0.11627662]
[1757672651358,0.57689487,115040.0,115030.0,0.07913662]
[1757672651564,0.57689487,115040.0,115030.0,0.001]
[1757672651761,0.57689487,115040.0,115030.0,0.07913662]
[1757672652766,0.57689487,115040.0,115030.0,0.001]
[1757672653065,0.57689487,115040.0,115030.0,0.0232]
[1757672653764,0.57689487,115040.0,115030.0,0.10133662]
[1757672655964,0.57689487,115040.0,115030.0,0.0232]
[1757672656967,0.57689487,115040.0,115030.0,0.10133662]
[1757672658466,0.57689487,115040.0,115030.0,0.0232]
[1757672665671,0.57689487,115040.0,115030.0,0.10133662]
[1757672667373,0.57689487,115040.0,115030.0,0.0232]
[1757672679288,0.32689487,115040.0,115030.0,0.0232]
[1757672682587,0.32689487,115040.0,115030.0,0.001]
[1757672685992,0.32689487,115040.0,115030.0,0.02255]
[1757672687494,0.30648,115040.0,115030.0,0.02255]
[1757672695994,0.30648,115040.0,115030.0,0.10068662]
[1757672699401,0.30648,115040.0,115030.0,0.02255]
[1757672706610,0.30648,115040.0,115030.0,0.10068662]
[1757672708209,0.30648,115040.0,115030.0,0.11420662]
[1757672708906,0.2718,115040.0,115030.0,0.36420662]
[1757672709811,0.002,115040.0,115030.0,0.36420662]
[1757672711917,0.002,115040.0,115030.0,0.28607]
[1757672712611,0.0046,115040.0,115030.0,0.28607]
[1757672714816,0.0046,115040.0,115030.0,0.3729825]
[1757672715018,0.0046,115040.0,115030.0,0.56008688]
[1757672715216,0.0046,115040.0,115030.0,0.48195026]
[1757672715616,0.0046,115040.0,115030.0,1.05195026]
[1757672715816,0.0046,115040.0,115030.0,0.9629825]
[1757672716016,0.02042112,115050.0,115040.0,0.122855]
[1757672716212,0.02042112,115050.0,115040.0,0.23208504]
[1757672717316,0.02242112,115050.0,115040.0,0.23208504]
[1757672717818,0.02442112,115050.0,115040.0,0.23308504]
[1757672718812,0.02242112,115050.0,115040.0,0.20276959]
[1757672719619,0.02142112,115050.0,115040.0,0.20476959]
[1757672721307,0.02142112,115050.0,115040.0,0.126855]
[1757672724124,0.001,115050.0,115040.0,0.126855]
[1757672724829,0.001,115050.0,115040.0,0.20476959]
[1757672726122,0.001,115050.0,115040.0,0.77476959]
[1757672726524,0.001,115050.0,115040.0,0.20476959]
[1757672729027,0.001,115050.0,115040.0,0.126855]
[1757672729325,0.001,115050.0,115040.0,0.23608504]
[1757672730426,0.001,115050.0,115040.0,0.126855]
[1757672731528,0.001,115050.0,115040.0,0.20465907]
[1757672732431,0.02387,115050.0,115040.0,0.20465907]
[1757672733131,0.02387,115050.0,115040.0,0.20465897]
[1757672733331,0.02387,115050.0,115040.0,0.03995]
[1757672733532,0.02387,115050.0,115040.0,0.11776541]
[1757672736432,0.02387,115050.0,115040.0,0.03995]
[1757672736632,0.02387,115050.0,115040.0,0.11780759]
[1757672737329,0.02387,115050.0,115040.0,0.03995]
[1757672737533,0.02387,115050.0,115040.0,0.11782158]
[1757672738338,0.02387,115050.0,115040.0,0.03995]
[1757672740434,0.02387,115050.0,115040.0,0.14918004]
[1757672740729,0.02387,115050.0,115040.0,0.23608494]
[1757672740934,0.001,115050.0,115040.0,0.23608494]
[1757672742138,0.02387,115050.0,115040.0,0.23608494]
[1757672744332,0.02387,115050.0,115040.0,0.14918004]
[1757672747441,0.02387,115050.0,115040.0,0.03995]
[1757672749342,0.02387,115050.0,115040.0,0.14918004]
[1757672749852,0.001,115050.0,115040.0,0.23608494]
[1757672751350,0.001,115050.0,115040.0,0.1268549]
[1757672752253,0.001,115050.0,115040.0,0.23617804]
[1757672753149,0.001,115050.0,115040.0,0.1268549]
[1757672758862,0.001,115050.0,115040.0,0.23618187]
[1757672762261,0.001,115050.0,115040.0,0.81618187]
[1757672762560,0.001,115050.0,115040.0,0.23618187]
[1757672763369,0.001,115050.0,115040.0,0.81618187]
[1757672764568,0.001,115050.0,115040.0,0.23618187]
[1757672769368,0.001,115050.0,115040.0,0.1268549]
[1757672774379,0.001,115050.0,115040.0,0.6468549]
[1757672774676,0.001,115050.0,115040.0,0.1268549]
[1757672776571,0.001,115050.0,115040.0,0.8768549]
[1757672776774,0.0026,115060.0,115050.0,0.1217071]
[1757672777076,0.0026,115060.0,115050.0,0.79838942]
[1757672778268,0.0026,115060.0,115050.0,0.79938942]
[1757672778972,0.0026,115060.0,115050.0,0.80038942]
[1757672779278,0.0036,115060.0,115050.0,0.80027301]
[1757672779779,0.0036,115060.0,115050.0,0.69206608]
[1757672782977,0.0036,115060.0,115050.0,0.14206608]
[1757672785181,0.0036,115060.0,115050.0,0.62206608]
[1757672785382,0.0036,115060.0,115050.0,0.14206608]
[1757672787384,0.0036,115060.0,115050.0,0.73206608]
[1757672787584,0.0036,115060.0,115050.0,0.14206608]
[1757672788486,0.0036,115060.0,115050.0,0.66206608]
[1757672790984,0.0036,115060.0,115050.0,0.14206608]
[1757672791189,0.0036,115060.0,115050.0,0.25117495]
[1757672793390,0.02487,115060.0,115050.0,0.25117495]
[1757672795891,0.02227,115060.0,115050.0,0.25117495]
[1757672799696,0.02487,115060.0,115050.0,0.25117495]
[1757672806506,0.02487,115060.0,115050.0,0.14206608]
[1757672807203,0.0036,115060.0,115050.0,0.14206608]
[1757672807400,0.02487,115060.0,115050.0,0.14206608]
[1757672808905,0.02487,115060.0,115050.0,0.2513266]
[1757672809709,0.02487,115060.0,115050.0,0.13321023]
[1757672809710,0.03793,115060.0,115050.0,0.13321023]
[1757672809905,0.02487,115060.0,115050.0,0.13321023]
[1757672810105,0.02487,115060.0,115050.0,0.22010733]
[1757672811607,0.02487,115060.0,115050.0,0.13321023]
[1757672812206,0.02487,115060.0,115050.0,0.22010733]
[1757672819105,0.02487,115060.0,115050.0,0.14206608]
[1757672819306,0.02487,115060.0,115050.0,0.2513266]
[1757672823613,0.0036,115060.0,115050.0,0.2513266]
[1757672823814,0.0256,115060.0,115050.0,0.2513266]
[1757672825608,0.0036,115060.0,115050.0,0.2513266]
[1757672826612,0.0256,115060.0,115050.0,0.2513266]
[1757672830819,0.0256,115060.0,115050.0,0.1644295]
[1757672831517,0.0256,115060.0,115050.0,0.2513266]
[1757672839815,0.0256,115060.0,115050.0,0.1644295]
[1757672844926,0.0256,115060.0,115050.0,0.2513266]
[1757672848928,0.0256,115060.0,115050.0,0.32939717]
[1757672849428,0.0256,115060.0,115050.0,0.22013665]
[1757672854534,0.0036,115060.0,115050.0,0.22013665]
[1757672854828,0.02492,115060.0,115050.0,0.22013665]
[1757672855030,0.0036,115060.0,115050.0,0.22013665]
[1757672859136,0.0036,115060.0,115050.0,0.2513266]
[1757672863944,0.0036,115060.0,115050.0,0.14206608]
[1757672866546,0.0036,115060.0,115050.0,0.2513723]
[1757672870451,0.0036,115060.0,115050.0,0.14206608]
[1757672870643,0.0036,115060.0,115050.0,0.25137049]
[1757672870947,0.0036,115060.0,115050.0,0.14206608]
[1757672872339,0.0036,115060.0,115050.0,0.39206608]
[1757672872748,0.0036,115060.0,115050.0,0.50136042]
[1757672873550,0.0036,115060.0,115050.0,1.04136042]
[1757672875153,0.0036,115060.0,115050.0,0.50136042]
[1757672877754,0.0036,115060.0,115050.0,0.39206608]
[1757672878356,0.0036,115060.0,115050.0,0.50132652]
[1757672879054,0.0036,115060.0,115050.0,0.39206608]
[1757672888866,0.02556,115060.0,115050.0,0.39206608]
[1757672889267,0.0036,115060.0,115050.0,0.39206608]
[1757672892863,0.0036,115060.0,115050.0,0.47013027]
[1757672896771,0.02556,115060.0,115050.0,0.47013027]
[1757672897069,0.0036,115060.0,115050.0,0.47013027]
[1757672897568,0.0036,115060.0,115050.0,0.45277129]
[1757672898973,0.0036,115060.0,115050.0,0.3747071]
[1757672900771,0.0036,115060.0,115050.0,0.48399697]
[1757672909180,0.0036,115060.0,115050.0,0.3747071]
[1757672910579,0.0036,115060.0,115050.0,0.48408648]
[1757672917184,0.0036,115060.0,115050.0,0.3747071]
[1757672919285,0.0036,115060.0,115050.0,0.1247071]
[1757672920684,0.0036,115060.0,115050.0,0.03781]
[1757672924590,0.0256,115060.0,115050.0,0.03781]
[1757672924988,0.2756,115060.0,115050.0,0.03781]
[1757672932501,0.2756,115060.0,115050.0,0.1247068]
[1757672934904,0.2756,115060.0,115050.0,0.03781]
[1757672938898,0.2756,115060.0,115050.0,0.1247068]
[1757672943611,0.2536,115060.0,115050.0,0.1247068]
[1757672944212,0.27494,115060.0,115050.0,0.1247068]
[1757672945713,0.27494,115060.0,115050.0,0.03781]
[1757672946011,0.27494,115060.0,115050.0,0.14716964]
[1757672946412,0.27494,115060.0,115050.0,0.23406644]
[1757672946711,0.27494,115060.0,115050.0,0.1247068]
[1757672953020,0.27494,115060.0,115050.0,0.23406614]
[1757672954616,0.27494,115060.0,115050.0,0.1247068]
[1757672959727,0.27494,115060.0,115050.0,0.03781]
[1757672961424,0.27494,115060.0,115050.0,0.1247068]
[1757672964827,0.2536,115060.0,115050.0,0.23405698]
[1757672966633,0.27495,115060.0,115050.0,0.23405698]
[1757672968732,0.27495,115060.0,115050.0,0.1247068]
[1757672969234,0.27495,115060.0,115050.0,0.23405497]
[1757672971837,0.27495,115060.0,115050.0,0.1247068]
[1757672972037,0.2536,115060.0,115050.0,0.1247068]
[1757672973931,0.0036,115060.0,115050.0,0.3747068]
[1757672976947,0.04518308,115060.0,115050.0,0.28781]
[1757672979344,0.04518308,115060.0,115050.0,0.03781]
[1757672979644,0.04518308,115060.0,115050.0,0.14715189]
[1757672980045,0.04518308,115060.0,115050.0,0.03781]
[1757672981145,0.04518308,115060.0,115050.0,0.1471516]
[1757672982444,0.04518308,115060.0,115050.0,0.03781]
[1757672988247,0.02495,115060.0,115050.0,0.03781]
[1757672988449,0.02495,115060.0,115050.0,0.05565374]
[1757672988642,0.02495,115060.0,115050.0,0.05540977]
[1757672989947,0.02495,115060.0,115050.0,0.13351192]
[1757672991053,0.02495,115060.0,115050.0,0.05540977]
[1757672991853,0.02495,115060.0,115050.0,0.05507227]
[1757672992048,0.02495,115060.0,115050.0,0.11591672]
[1757672992252,0.02495,115060.0,115050.0,0.13317899]
[1757672993455,0.02495,115060.0,115050.0,0.05507227]
[1757672998158,0.02495,115060.0,115050.0,0.16441064]
[1757672998558,0.03794,115060.0,115050.0,0.16441064]
[1757673000460,0.28794,115060.0,115050.0,0.13397837]
[1757673000656,0.30817899,115060.0,115050.0,0.11233837]
[1757673000965,1.80817899,115060.0,115050.0,0.11233837]
[1757673001162,1.80817899,115060.0,115050.0,0.08111262]
[1757673001365,1.80817899,115060.0,115050.0,0.003]
[1757673020674,0.30817899,115060.0,115050.0,0.02592]
[1757673020864,0.05817899,115060.0,115050.0,0.02592]
[1757673022873,0.04518899,115060.0,115050.0,0.03938]
[1757673023075,0.04518899,115060.0,115050.0,0.9562767]
[1757673023277,0.04518899,115060.0,115050.0,1.03438932]
[1757673023577,0.04518899,115060.0,115050.0,0.45438932]
[1757673027180,0.04518899,115060.0,115050.0,0.36749262]
[1757673030181,0.04518899,115060.0,115050.0,0.45438942]
[1757673032087,0.02383899,115060.0,115050.0,0.3762768]
[1757673032385,0.02383899,115060.0,115050.0,0.48561517]
[1757673032594,0.02383899,115060.0,115050.0,1.07348419]
[1757673034681,0.02383899,115060.0,115050.0,0.50348419]
[1757673034882,0.02383899,115060.0,115050.0,0.99348419]
[1757673035090,0.02383899,115060.0,115050.0,0.50348419]
[1757673037086,0.0036,115060.0,115050.0,0.3762768]
[1757673037289,0.0036,115060.0,115050.0,0.3941588]
[1757673037881,0.0036,115060.0,115050.0,0.39373455]
[1757673039096,0.0036,115060.0,115050.0,0.47174308]
[1757673039286,0.0036,115060.0,115050.0,0.22174308]
[1757673040187,0.0036,115060.0,115050.0,0.70174308]
[1757673040384,0.0036,115060.0,115050.0,0.68428533]
[1757673040587,0.0036,115060.0,115050.0,0.70187796]
[1757673040789,0.0036,115060.0,115050.0,0.62386943]
[1757673041296,0.0036,115060.0,115050.0,1.0436237]
[1757673041493,0.04254595,115090.0,115080.0,0.03678]
[1757673042686,0.04254595,115090.0,115080.0,0.03778]
[1757673042887,0.04454595,115090.0,115080.0,0.03778]
[1757673043487,0.04654595,115090.0,115080.0,0.03778]
[1757673043692,0.06034595,115090.0,115080.0,0.03778]
[1757673044096,0.06034595,115090.0,115080.0,0.03296903]
[1757673046296,0.06034595,115090.0,115080.0,0.10193686]
[1757673046492,0.03999,115090.0,115080.0,0.10193686]
[1757673046693,0.03999,115090.0,115080.0,0.13313826]
[1757673046890,0.03999,115090.0,115080.0,0.13313482]
[1757673047094,0.03999,115090.0,115080.0,0.13303481]
[1757673047496,0.02619,115090.0,115080.0,0.13303481]
[1757673049902,0.02619,115090.0,115080.0,0.13303481]
[1757673050403,0.02619,115090.0,115080.0,0.13328813]
[1757673050597,0.02619,115090.0,115080.0,0.13290489]
[1757673053502,0.03972,115090.0,115080.0,0.13290489]
[1757673053698,0.03972,115090.0,115080.0,0.11079586]
[1757673055701,0.03972,115090.0,115080.0,0.11936865]
[1757673056300,0.03972,115090.0,115080.0,0.13273865]
[1757673056501,0.03972,115090.0,115080.0,0.12447541]
[1757673056804,0.03972,115090.0,115080.0,0.11110541]
[1757673057302,0.03972,115090.0,115080.0,0.11092695]
[1757673060106,0.03972,115090.0,115080.0,0.09328783]
[1757673062100,0.03972,115090.0,115080.0,0.10665783]
[1757673062613,0.02619,115090.0,115080.0,0.10665783]
[1757673063401,0.02619,115090.0,115080.0,0.44353163]
[1757673063607,0.004,115090.0,115080.0,0.44353163]
[1757673064208,0.02515,115090.0,115080.0,0.44353163]
[1757673065408,0.004,115090.0,115080.0,0.44353163]
[1757673066101,0.02515,115090.0,115080.0,0.44353163]
[1757673066407,0.03868,115090.0,115080.0,0.35665783]
[1757673066808,0.02515,115090.0,115080.0,0.35665783]
[1757673067201,0.02515,115090.0,115080.0,0.52149622]
[1757673069114,0.02515,115090.0,115080.0,0.44353163]
[1757673074312,0.004,115090.0,115080.0,0.44353163]
[1757673075611,0.02515,115090.0,115080.0,0.44353163]
[1757673079416,0.02515,115090.0,115080.0,0.55287]
[1757673086620,0.02515,115090.0,115080.0,0.4659962]
[1757673088121,0.02515,115090.0,115080.0,0.35665783]
[1757673089419,0.02515,115090.0,115080.0,0.44353143]
[1757673090420,0.02515,115090.0,115080.0,0.35665783]
[1757673091817,0.02315,115090.0,115080.0,0.35565783]
[1757673092123,0.02215,115090.0,115080.0,0.35665783]
[1757673092523,0.0361,115090.0,115080.0,0.09328783]
[1757673092724,0.0351,115090.0,115080.0,0.09328783]
[1757673092917,0.0351,115090.0,115080.0,0.2026262]
[1757673095419,0.2851,115090.0,115080.0,0.2026262]
[1757673096826,0.2851,115090.0,115080.0,0.2153862]
[1757673099132,0.2851,115090.0,115080.0,0.2026262]
[1757673099432,0.0351,115090.0,115080.0,0.2026262]
[1757673102634,0.02115,115090.0,115080.0,0.2153862]
[1757673107537,0.02115,115090.0,115080.0,0.30226]
[1757673109144,0.02115,115090.0,115080.0,0.27101606]
[1757673111241,0.29017552,115100.0,115080.0,0.35788986]
[1757673111436,0.31305552,115100.0,115090.0,0.1223763]
[1757673111932,0.31305552,115100.0,115090.0,0.03551]
[1757673112437,0.31405552,115100.0,115090.0,0.03551]
[1757673112742,0.32870552,115100.0,115090.0,0.03551]
[1757673113747,0.31505552,115100.0,115090.0,0.03551]
[1757673114046,0.32870552,115100.0,115090.0,0.02275]
[1757673114849,0.32770552,115100.0,115090.0,0.02275]
[1757673115048,0.32870552,115100.0,115090.0,0.02275]
[1757673119249,0.33130552,115100.0,115090.0,0.10084443]
[1757673122054,0.33130552,115100.0,115090.0,0.07809443]
[1757673122253,0.33130552,115100.0,115090.0,0.10103443]
[1757673123659,0.33130552,115100.0,115090.0,0.07809443]
[1757673125659,0.33130552,115100.0,115090.0,0.10103443]
[1757673130061,0.33130552,115100.0,115090.0,0.02294]
[1757673132164,0.33130552,115100.0,115090.0,0.10103443]
[1757673132762,0.33130552,115100.0,115090.0,0.02294]
[1757673134352,0.33130552,115100.0,115090.0,0.10103443]
[1757673143267,0.33130552,115100.0,115090.0,0.07809443]
[1757673143468,0.33130552,115100.0,115090.0,0.09944443]
[1757673157394,0.33130552,115100.0,115090.0,0.11329443]
[1757673159292,0.33130552,115100.0,115090.0,0.0352]
[1757673160592,0.31765552,115100.0,115090.0,0.0352]
[1757673160983,0.33088552,115100.0,115090.0,0.0352]
[1757673165601,0.33088552,115100.0,115090.0,0.02135]
[1757673167009,0.03483,115090.0,115080.0,0.16841226]
[1757673169405,0.03483,115090.0,115080.0,0.1996562]
[1757673171303,0.03483,115090.0,115080.0,0.2135062]
[1757673171506,0.0242,115090.0,115080.0,0.30038]
[1757673171898,0.0026,115090.0,115080.0,0.30038]
[1757673172106,0.02391,115090.0,115080.0,0.30038]
[1757673172908,0.02391,115090.0,115080.0,0.2135062]
[1757673177106,0.02391,115090.0,115080.0,0.30038]
[1757673184709,0.02391,115090.0,115080.0,0.19104163]
[1757673187717,0.02391,115090.0,115080.0,0.30038]
[1757673192016,0.02491,115090.0,115080.0,0.30138]
[1757673193112,0.0036,115090.0,115080.0,0.30138]
[1757673193613,0.02491,115090.0,115080.0,0.30138]
[1757673195123,0.0036,115090.0,115080.0,0.30138]
[1757673199123,0.0036,115090.0,115080.0,0.37946871]
[1757673199327,0.0036,115090.0,115080.0,0.27013034]
[1757673199820,0.02491,115090.0,115080.0,0.27013034]
[1757673205726,0.14952333,115090.0,115080.0,0.27013034]
[1757673208621,0.12821333,115090.0,115080.0,0.39474367]
[1757673209320,0.12821333,115090.0,115080.0,0.30138]
[1757673209933,0.14999333,115090.0,115080.0,0.30138]
[1757673219735,0.14999333,115090.0,115080.0,0.2145062]
[1757673230340,0.14999333,115090.0,115080.0,0.10516783]
[1757673232344,0.2123111,115090.0,115080.0,0.29209893]
[1757673236642,0.2123111,115090.0,115080.0,0.10516783]
[1757673236837,0.2123111,115090.0,115080.0,0.29209893]
[1757673237039,0.2123111,115090.0,115080.0,0.4014373]
[1757673237937,0.2123111,115090.0,115080.0,0.4883111]
[1757673242145,0.02538,115090.0,115080.0,0.4883111]
[1757673242441,0.2123111,115090.0,115080.0,0.4883111]
[1757673242650,0.2123111,115090.0,115080.0,0.37897273]
[1757673242844,0.2123111,115090.0,115080.0,0.48832858]
[1757673243144,0.2123111,115090.0,115080.0,0.50592797]
[1757673244847,0.02538,115090.0,115080.0,0.31899687]
[1757673245037,0.2123111,115090.0,115080.0,0.50592797]
[1757673245434,0.2123111,115090.0,115080.0,0.23212307]
[1757673246446,0.02538,115090.0,115080.0,0.23212307]
[1757673246644,0.2123111,115090.0,115080.0,0.21452368]
[1757673248341,0.2123111,115090.0,115080.0,0.40145478]
[1757673249349,0.2123111,115090.0,115080.0,0.21452368]
[1757673249742,0.4131122,115090.0,115080.0,0.20067368]
[1757673251343,0.03925,115090.0,115080.0,0.20067368]
[1757673251543,0.4131122,115090.0,115080.0,0.20067368]
[1757673253148,0.4131122,115090.0,115080.0,0.09131783]
[1757673254452,0.03925,115090.0,115080.0,0.09131783]
[1757673254653,0.4131122,115090.0,115080.0,0.09131783]
[1757673255359,0.03925,115090.0,115080.0,0.09131783]
[1757673255654,0.4131122,115090.0,115080.0,0.09131783]
[1757673256254,0.4131122,115090.0,115080.0,0.10450783]
[1757673256657,0.4131122,115090.0,115080.0,0.21386368]
[1757673259158,0.2261811,115090.0,115080.0,0.21386368]
[1757673259753,0.0036,115090.0,115080.0,0.40079478]
[1757673259953,0.1905311,115090.0,115080.0,0.40079478]
[1757673260256,0.2123411,115090.0,115080.0,0.40079478]
[1757673262656,0.2123411,115090.0,115080.0,0.48766858]
[1757673263156,0.2133411,115090.0,115080.0,0.48766858]
[1757673263456,0.2153411,115090.0,115080.0,0.48766858]
[1757673263855,0.2143411,115090.0,115080.0,0.48766858]
[1757673264043,0.2123411,115090.0,115080.0,0.48766858]
[1757673265655,0.02541,115090.0,115080.0,0.48766858]
[1757673265857,0.2123411,115090.0,115080.0,0.48766858]
[1757673268358,0.02541,115090.0,115080.0,0.48766858]
[1757673268559,0.2123411,115090.0,115080.0,0.48766858]
[1757673269859,0.02541,115090.0,115080.0,0.48766858]
[1757673270062,0.0036,115090.0,115080.0,1.43459968]
[1757673270860,0.0036,115090.0,115080.0,1.32524383]
[1757673274862,0.0036,115090.0,115080.0,0.44138163]
[1757673275164,0.0036,115090.0,115080.0,1.12524383]
[1757673276161,0.1905311,115090.0,115080.0,1.09070383]
[1757673276362,0.1905311,115090.0,115080.0,1.10439383]
[1757673277164,0.1905311,115090.0,115080.0,1.21374968]
[1757673277666,0.1905311,115090.0,115080.0,1.10439383]
[1757673278059,0.1905311,115090.0,115080.0,1.21374968]
[1757673279264,0.1905311,115090.0,115080.0,0.98599968]
[1757673280168,0.0036,115090.0,115080.0,0.98599968]
[1757673280463,0.1905311,115090.0,115080.0,0.98599968]
[1757673281259,0.0036,115090.0,115080.0,0.98599968]
[1757673281562,0.1905311,115090.0,115080.0,0.87664383]
[1757673284859,0.0036,115090.0,115080.0,0.87664383]
[1757673285757,0.0036,115090.0,115080.0,1.31357493]
[1757673285955,0.0036,115090.0,115080.0,1.12664383]
[1757673289168,0.0036,115090.0,115080.0,1.31357493]
[1757673289668,0.0036,115090.0,115080.0,1.12664383]
[1757673289970,0.0036,115090.0,115080.0,0.85278163]
[1757673290159,0.0036,115090.0,115080.0,1.22664383]
[1757673292369,0.0036,115090.0,115080.0,1.10192709]
[1757673304194,0.0036,115090.0,115080.0,1.01505329]
[1757673304379,0.0036,115090.0,115080.0,0.64048056]
[1757673304588,0.15009273,115090.0,115080.0,0.43973338]
[1757673305092,0.15009273,115090.0,115080.0,0.31516065]
[1757673305390,0.40009273,115090.0,115080.0,0.43973338]
[1757673305788,0.40009273,115090.0,115080.0,0.31516065]
[1757673305978,0.55797333,115090.0,115080.0,0.30147065]
[1757673306179,0.4334006,115090.0,115080.0,0.19221783]
[1757673311592,0.55797333,115090.0,115080.0,0.12325]
[1757673311791,0.55797333,115090.0,115080.0,0.001]
[1757673312386,0.03504,115060.0,115050.0,0.45698444]
[1757673312589,0.15961273,115060.0,115050.0,0.45698444]
[1757673312786,0.15961273,115060.0,115050.0,0.33241171]
[1757673312993,0.15961273,115060.0,115050.0,0.32744523]
[1757673313190,0.15961273,115060.0,115050.0,0.21819241]
[1757673313599,0.15961273,115060.0,115050.0,0.21246889]
[1757673313796,0.15961273,115060.0,115050.0,0.19486685]
[1757673313996,0.16061273,115060.0,115050.0,0.32443958]
[1757673314197,0.16061273,115060.0,115050.0,0.19986685]
[1757673315206,0.16321273,115060.0,115050.0,0.19786685]
[1757673315498,0.16321273,115060.0,115050.0,0.19586685]
[1757673315698,0.16321273,115060.0,115050.0,0.32043958]
[1757673318296,0.03864,115060.0,115050.0,0.32043958]
[1757673318504,0.03864,115060.0,115050.0,0.33325958]
[1757673318800,0.02552,115060.0,115050.0,0.33325958]
[1757673326100,0.03885,115060.0,115050.0,0.33325958]
[1757673330201,0.02552,115060.0,115050.0,0.33325958]
[1757673330603,0.02552,115060.0,115050.0,0.20868685]
[1757673330805,0.02552,115060.0,115050.0,0.33325958]
[1757673336911,0.02552,115060.0,115050.0,0.20868685]
[1757673337113,0.02552,115060.0,115050.0,0.33325958]
[1757673338515,0.02552,115060.0,115050.0,0.20868685]
[1757673338716,0.02552,115060.0,115050.0,0.33325958]
[1757673347413,0.02552,115060.0,115050.0,0.33721214]
[1757673353519,0.02552,115060.0,115050.0,0.44646496]
[1757673354420,0.21252694,115060.0,115050.0,0.50889917]
[1757673360428,0.02552,115060.0,115050.0,0.50889917]
[1757673360721,0.02552,115060.0,115050.0,0.55964635]
[1757673363924,0.02552,115060.0,115050.0,0.66889917]
[1757673364421,0.02552,115060.0,115050.0,0.668899]
[1757673371632,0.02552,115060.0,115050.0,0.508899]
[1757673371930,0.02552,115060.0,115050.0,0.688899]
[1757673372332,0.02552,115060.0,115050.0,0.7757953]
[1757673373130,0.02552,115060.0,115050.0,0.7657953]
[1757673373532,0.02552,115060.0,115050.0,0.5957953]
[1757673373732,0.02552,115060.0,115050.0,0.7457953]
[1757673375032,0.02552,115060.0,115050.0,0.658899]
[1757673377333,0.0036,115060.0,115050.0,0.658899]
[1757673377534,0.0036,115060.0,115050.0,0.7457953]
[1757673380037,0.02516,115060.0,115050.0,0.7457953]
[1757673381335,0.02120775,115060.0,115050.0,0.74184291]
[1757673384135,0.20821469,115060.0,115050.0,0.40483597]
[1757673384335,0.02120775,115060.0,115050.0,0.77184291]
[1757673385132,0.20700116,115070.0,115050.0,0.77184291]